[Event "Fredericia IM 2019"]
[Site "Fredericia"]
[Date "2019.06.02"]
[Round "8.1"]
[White "Easwaralingam, Adesh"]
[Black "Sorensen, Hampus"]
[Result "1/2-1/2"]
[ECO "C54"]
[WhiteElo "2123"]
[BlackElo "2343"]
[Annotator "ChessBase"]
[PlyCount "66"]
[EventDate "2019.05.29"]
[EventType "tourn"]
[EventCountry "DEN"]
[SourceTitle "playchess.com"]
[Source "ChessBase"]
[SourceQuality "1"]
[TimeControl "40/5400+30:1800+30"]

1. e4 {[%emt 0:02:57]} e5 {[%emt 0:00:00]} 2. Nf3 {[%emt 0:00:07]} Nc6 {[%emt 0:00:17]} 3. Bc4 {[%emt 0:00:07]} Bc5 {[%emt 0:00:44]} 4. c3 {[%emt 0:00:18]} Nf6 {[%emt 0:00:30]} 5. d4 {[%emt 0:00:10]} exd4 {[%emt 0:00:34]} 6. e5 {[%emt 0:00:05]} d5 {[%emt 0:01:21]} 7. Bb5 {[%emt 0:00:09]} Ne4 {[%emt 0:01:02]} 8. cxd4 {[%emt 0:00:08]} Bb6 {[%emt 0:00:29]} 9. Nc3 {[%emt 0:00:39]} O-O {[%emt 0:00:54]} 10. Be3 {[%emt 0:00:24]} f5 {[%emt 0:04:39]} 11. exf6 {[%emt 0:14:28]} Nxc3 {[%emt 0:01:23]} 12. bxc3 {[%emt 0:01:31]} Qxf6 {[%emt 0:00:23]} 13. Qb3 {[%emt 0:08:36]} Qd6 {[%emt 0:08:57]} 14. Bxc6 {[%emt 0:09:41]} bxc6 {[%emt 0:07:23]} 15. Ne5 {[%emt 0:00:49]} c5 {[%emt 0:11:00]} 16. O-O {[%emt 0:03:40]} Be6 {[%emt 0:07:43]} 17. Rfe1 {[%emt 0:11:24]} c4 {[%emt 0:08:46]} 18. Qa4 {[%emt 0:06:51]} Rf5 {[%emt 0:05:36]} 19. g4 {[%emt 0:09:58]} Rff8 {[%emt 0:06:35]} 20. h3 {[%emt 0:03:52]} Rac8 {[%emt 0:04:52]} 21. f4 {[%emt 0:04:49]} g6 {[%emt 0:00:21]} 22. Qc2 {[%emt 0:01:06]} Rce8 {[%emt 0:05:59]} 23. a4 {[%emt 0:01:57]} c5 {[%emt 0:05:42]} 24. a5 {[%emt 0:04:16]} cxd4 {[%emt 0:00:23]} 25. cxd4 {[%emt 0:00:40]} Bc7 {[%emt 0:00:50]} 26. Rf1 {[%emt 0:02:03]} Bc8 {[%emt 0:01:43]} 27. Qg2 {[%emt 0:01:22]} Qd8 {[%emt 0:03:54]} 28. Bd2 {[%emt 0:02:18]} Bxe5 {[%emt 0:02:26]} 29. fxe5 {[%emt 0:00:04]} Rxf1+ {[%emt 0:01:13]} 30. Rxf1 {[%emt 0:00:07]} Rf8 {[%emt 0:00:12]} 31. Rxf8+ {[%emt 0:00:38]} Kxf8 {[%emt 0:00:09]} 32. Bb4+ {[%emt 0:00:03]} Kg7 {[%emt 0:01:44]} 33. Qf3 {[%emt 0:00:14]} a6 {[%emt 0:02:27]} 1/2-1/2

[Event "Fredericia IM 2019"]
[Site "Fredericia"]
[Date "2019.06.02"]
[Round "8.2"]
[White "Devereaux, Maxim L"]
[Black "Ahlander, Bjorn"]
[Result "0-1"]
[ECO "B42"]
[WhiteElo "2342"]
[BlackElo "2421"]
[Annotator "ChessBase"]
[PlyCount "68"]
[EventDate "2019.05.29"]
[EventType "tourn"]
[EventCountry "DEN"]
[SourceTitle "playchess.com"]
[Source "ChessBase"]
[SourceQuality "1"]
[TimeControl "40/5400+30:1800+30"]

1. e4 {[%emt 0:00:17]} c5 {[%emt 0:00:00]} 2. Nf3 {[%emt 0:00:06]} e6 {[%emt 0:00:00]} 3. d4 {[%emt 0:00:12]} cxd4 {[%emt 0:00:00]} 4. Nxd4 {[%emt 0:00:03]} a6 {[%emt 0:00:00]} 5. Bd3 {[%emt 0:01:03]} Bc5 {[%emt 0:00:13]} 6. Nb3 {[%emt 0:00:05]} Ba7 {[%emt 0:00:16]} 7. Nc3 {[%emt 0:02:23]} Nc6 {[%emt 0:00:08]} 8. Qe2 {[%emt 0:01:32]} d6 {[%emt 0:00:12]} 9. Be3 {[%emt 0:04:45]} Nf6 {[%emt 0:00:19]} 10. O-O-O {[%emt 0:03:13]} e5 {[%emt 0:03:18]} 11. f3 {[%emt 0:11:52]} b5 {[%emt 0:05:58]} 12. Kb1 {[%emt 0:05:23]} Be6 {[%emt 0:04:45]} 13. g4 {[%emt 0:05:05]} Bxe3 {[%emt 0:10:16]} 14. Qxe3 {[%emt 0:00:11]} O-O {[%emt 0:00:18]} 15. Nd5 {[%emt 0:11:58]} Bxd5 {[%emt 0:04:25]} 16. exd5 {[%emt 0:00:07]} Ne7 {[%emt 0:00:57]} 17. Qd2 {[%emt 0:10:35]} Ra7 {[%emt 0:07:11]} 18. Qf2 {[%emt 0:04:08]} Qb8 {[%emt 0:05:48]} 19. g5 {[%emt 0:18:40]} Nfxd5 {[%emt 0:01:59]} 20. Be4 {[%emt 0:00:28]} Nb6 {[%emt 0:01:07]} 21. Rhg1 {[%emt 0:01:30]} d5 {[%emt 0:10:53]} 22. Bd3 {[%emt 0:00:07]} Qd6 {[%emt 0:01:30]} 23. Qh4 {[%emt 0:03:34]} g6 {[%emt 0:14:08]} 24. f4 {[%emt 0:00:42]} Nc4 {[%emt 0:08:56]} 25. Bxc4 {[%emt 0:02:25]} bxc4 {[%emt 0:00:31]} 26. Nd2 {[%emt 0:01:30]} Qb6 {[%emt 0:05:23]} 27. fxe5 {[%emt 0:03:11]} a5 {[%emt 0:05:27]} 28. Nf3 {[%emt 0:01:49]} Nf5 {[%emt 0:00:43]} 29. Qe1 {[%emt 0:01:10]} d4 {[%emt 0:00:27]} 30. Qf2 {[%emt 0:04:37]} Rb8 {[%emt 0:02:47]} 31. b3 {[%emt 0:00:04]} a4 {[%emt 0:00:15]} 32. Nxd4 {[%emt 0:00:16]} axb3 {[%emt 0:00:35]} 33. cxb3 {[%emt 0:01:16]} cxb3 {[%emt 0:00:08]} 34. a4 {[%emt 0:01:16]} Rxa4 {[%emt 0:00:35]} 0-1

[Event "Fredericia IM 2019"]
[Site "Fredericia"]
[Date "2019.06.02"]
[Round "8.3"]
[White "Jacobsen, Mikkel Manosri"]
[Black "Vasli, Aref"]
[Result "1/2-1/2"]
[ECO "A77"]
[WhiteElo "2319"]
[BlackElo "2346"]
[Annotator "ChessBase"]
[PlyCount "82"]
[EventDate "2019.05.29"]
[EventType "tourn"]
[EventCountry "DEN"]
[SourceTitle "playchess.com"]
[Source "ChessBase"]
[SourceQuality "1"]
[TimeControl "40/5400+30:1800+30"]

1. d4 {[%emt 0:02:33]} Nf6 {[%emt 0:00:00]} 2. c4 {[%emt 0:00:04]} e6 {[%emt 0:00:00]} 3. Nf3 {[%emt 0:00:08]} c5 {[%emt 0:00:00]} 4. d5 {[%emt 0:00:04]} d6 {[%emt 0:00:16]} 5. Nc3 {[%emt 0:00:11]} exd5 {[%emt 0:00:32]} 6. cxd5 {[%emt 0:00:05]} g6 {[%emt 0:00:12]} 7. e4 {[%emt 0:00:03]} Bg7 {[%emt 0:00:16]} 8. Be2 {[%emt 0:00:03]} O-O {[%emt 0:00:21]} 9. O-O {[%emt 0:00:03]} Re8 {[%emt 0:00:06]} 10. Nd2 {[%emt 0:00:04]} a6 {[%emt 0:00:11]} 11. a4 {[%emt 0:00:04]} Nbd7 {[%emt 0:00:09]} 12. Ra3 {[%emt 0:00:09]} Rb8 {[%emt 0:01:27]} 13. Qc2 {[%emt 0:00:45]} Ne5 {[%emt 0:14:33]} 14. a5 {[%emt 0:00:07]} Bg4 {[%emt 0:20:23]} 15. f3 {[%emt 0:01:20]} Bd7 {[%emt 0:06:56]} 16. f4 {[%emt 0:01:38]} Neg4 {[%emt 0:00:40]} 17. Nc4 {[%emt 0:00:47]} Bb5 {[%emt 0:06:18]} 18. Nxb5 {[%emt 0:11:40]} axb5 {[%emt 0:00:41]} 19. Nb6 {[%emt 0:00:09]} h5 {[%emt 0:16:34]} 20. h3 {[%emt 0:01:19]} Nh6 {[%emt 0:03:37]} 21. e5 {[%emt 0:06:49]} b4 {[%emt 0:09:27]} 22. Rd3 {[%emt 0:07:54]} Nd7 {[%emt 0:01:34]} 23. Nc4 {[%emt 0:02:14]} Nf5 {[%emt 0:01:20]} 24. g4 {[%emt 0:05:19]} Nd4 {[%emt 0:00:57]} 25. Rxd4 {[%emt 0:00:18]} cxd4 {[%emt 0:00:15]} 26. Nxd6 {[%emt 0:00:14]} Qh4 {[%emt 0:01:00]} 27. Bb5 {[%emt 0:05:23]} Red8 {[%emt 0:08:49]} 28. Qg2 {[%emt 0:02:23]} Nc5 {[%emt 0:01:42]} 29. g5 {[%emt 0:02:02]} Nb3 {[%emt 0:01:56]} 30. Qf3 {[%emt 0:02:50]} Nxc1 {[%emt 0:01:07]} 31. Rxc1 {[%emt 0:00:02]} Bxe5 {[%emt 0:01:35]} 32. fxe5 {[%emt 0:05:33]} Qxg5+ {[%emt 0:00:11]} 33. Kf2 {[%emt 0:00:29]} Qd2+ {[%emt 0:02:12]} 34. Be2 {[%emt 0:01:08]} Rxd6 {[%emt 0:00:34]} 35. Rd1 {[%emt 0:01:10]} Qe3+ {[%emt 0:00:32]} 36. Qxe3 {[%emt 0:00:02]} dxe3+ {[%emt 0:00:06]} 37. Kxe3 {[%emt 0:00:09]} Re8 {[%emt 0:00:34]} 38. Kd4 {[%emt 0:01:00]} Rdd8 {[%emt 0:00:00]} 39. Bc4 {[%emt 0:02:47]} f6 {[%emt 0:01:30]} 40. exf6 {[%emt 0:13:31]} Rd6 {[%emt 0:00:56]} 41. Rf1 {[%emt 0:30:51]} Kf7 {[%emt 0:09:09] Ke4} 1/2-1/2

[Event "Fredericia IM 2019"]
[Site "Fredericia"]
[Date "2019.06.02"]
[Round "8.4"]
[White "Fries-Nielsen, Niels Jorgen"]
[Black "Antonsen, Mikkel"]
[Result "1/2-1/2"]
[ECO "D02"]
[WhiteElo "2328"]
[BlackElo "2423"]
[Annotator "ChessBase"]
[PlyCount "45"]
[EventDate "2019.05.29"]
[EventType "tourn"]
[EventCountry "DEN"]
[SourceTitle "playchess.com"]
[Source "ChessBase"]
[SourceQuality "1"]
[TimeControl "40/5400+30:1800+30"]

1. Nf3 {[%emt 0:00:00]} d5 {[%emt 0:00:00]} 2. d4 {[%emt 0:00:23]} Nf6 {[%emt 0:00:00]} 3. c3 {[%emt 0:00:13]} g6 {[%emt 0:00:18]} 4. h3 {[%emt 0:01:07]} Bg7 {[%emt 0:00:04]} 5. Bf4 {[%emt 0:00:17]} O-O {[%emt 0:00:06]} 6. Nbd2 {[%emt 0:00:31]} b6 {[%emt 0:01:12]} 7. e3 {[%emt 0:00:25]} c5 {[%emt 0:00:08]} 8. Be2 {[%emt 0:00:46]} Ba6 {[%emt 0:00:07]} 9. O-O {[%emt 0:00:50]} Bxe2 {[%emt 0:00:04]} 10. Qxe2 {[%emt 0:00:02]} Qc8 {[%emt 0:00:29]} 11. Rfe1 {[%emt 0:01:31]} Qa6 {[%emt 0:00:22]} 12. Qxa6 {[%emt 0:00:38]} Nxa6 {[%emt 0:00:03]} 13. Be5 {[%emt 0:00:55]} Nb8 {[%emt 0:00:53]} 14. e4 {[%emt 0:02:59]} dxe4 {[%emt 0:05:58]} 15. Nxe4 {[%emt 0:02:27]} Nxe4 {[%emt 0:00:52]} 16. Bxg7 {[%emt 0:02:32]} Kxg7 {[%emt 0:00:07]} 17. Rxe4 {[%emt 0:00:03]} cxd4 {[%emt 0:00:09]} 18. Rxd4 {[%emt 0:02:26]} Nc6 {[%emt 0:00:48]} 19. Rc4 {[%emt 0:02:35]} Na5 {[%emt 0:00:14]} 20. Rd4 {[%emt 0:00:01]} Nc6 {[%emt 0:00:03]} 21. Rc4 {[%emt 0:00:05]} Na5 {[%emt 0:00:01]} 22. Rd4 {[%emt 0:00:02]} Nc6 {[%emt 0:00:09]} 23. Rc4 {[%emt 0:00:02]} 1/2-1/2

[Event "Fredericia IM 2019"]
[Site "Fredericia"]
[Date "2019.06.02"]
[Round "8.5"]
[White "Pedersen, Nicolai Kvist Brondt"]
[Black "Olsen, Filip Boe"]
[Result "0-1"]
[ECO "A46"]
[WhiteElo "2325"]
[BlackElo "2394"]
[Annotator "ChessBase"]
[PlyCount "106"]
[EventDate "2019.05.29"]
[EventType "tourn"]
[EventCountry "DEN"]
[SourceTitle "playchess.com"]
[Source "ChessBase"]
[SourceQuality "1"]
[TimeControl "40/5400+30:1800+30"]

1. d4 {[%emt 0:00:59]} Nf6 {[%emt 0:01:49]} 2. Nf3 {[%emt 0:00:04]} e6 {[%emt 0:00:59]} 3. c4 {[%emt 0:00:08]} d5 {[%emt 0:00:14]} 4. g3 {[%emt 0:00:02]} Bb4+ {[%emt 0:00:17]} 5. Bd2 {[%emt 0:00:01]} Be7 {[%emt 0:00:14]} 6. Bg2 {[%emt 0:00:04]} O-O {[%emt 0:00:16]} 7. O-O {[%emt 0:00:05]} Nbd7 {[%emt 0:00:06]} 8. Qc2 {[%emt 0:00:08]} c6 {[%emt 0:01:31]} 9. Bf4 {[%emt 0:03:01]} b6 {[%emt 0:00:56]} 10. cxd5 {[%emt 0:01:04]} cxd5 {[%emt 0:04:57]} 11. Rc1 {[%emt 0:00:47]} Bb7 {[%emt 0:04:19]} 12. Nc3 {[%emt 0:03:56]} Nh5 {[%emt 0:04:52]} 13. Bd2 {[%emt 0:11:07]} Nhf6 {[%emt 0:05:33]} 14. Bf4 {[%emt 0:00:19]} Nh5 {[%emt 0:00:50]} 15. Bd2 {[%emt 0:00:07]} a6 {[%emt 0:04:15]} 16. Ne5 {[%emt 0:04:21]} Nhf6 {[%emt 0:01:08]} 17. Nd3 {[%emt 0:01:28]} Rc8 {[%emt 0:02:41]} 18. Qb3 {[%emt 0:11:11]} Ne8 {[%emt 0:06:42]} 19. Nd1 {[%emt 0:07:22]} Rxc1 {[%emt 0:07:14]} 20. Rxc1 {[%emt 0:03:18]} Nd6 {[%emt 0:04:45]} 21. Bb4 {[%emt 0:02:13]} a5 {[%emt 0:08:22]} 22. Bxd6 {[%emt 0:00:52]} Bxd6 {[%emt 0:00:01]} 23. Nc3 {[%emt 0:00:30]} h5 {[%emt 0:05:15]} 24. h4 {[%emt 0:03:18]} g5 {[%emt 0:02:49]} 25. Nb5 {[%emt 0:13:01]} Bb8 {[%emt 0:00:58]} 26. hxg5 {[%emt 0:02:20]} Qxg5 {[%emt 0:00:19]} 27. Nf4 {[%emt 0:01:03]} h4 {[%emt 0:09:15]} 28. Rc3 {[%emt 0:02:38]} Bxf4 {[%emt 0:02:56]} 29. gxf4 {[%emt 0:00:06]} Qxf4 {[%emt 0:00:11]} 30. Qc2 {[%emt 0:10:28]} Kh8 {[%emt 0:04:14]} 31. Rf3 {[%emt 0:01:55]} Qg4 {[%emt 0:02:57]} 32. Nd6 {[%emt 0:06:20]} Ba6 {[%emt 0:05:16]} 33. Qd2 {[%emt 0:03:45]} Qh5 {[%emt 0:03:12]} 34. Qf4 {[%emt 0:06:05]} Bxe2 {[%emt 0:01:34]} 35. Rh3 {[%emt 0:00:59]} Bg4 {[%emt 0:01:05]} 36. Rh2 {[%emt 0:01:04]} f5 {[%emt 0:02:29]} 37. f3 {[%emt 0:00:39]} Rg8 {[%emt 0:00:34]} 38. fxg4 {[%emt 0:00:33]} Rxg4 {[%emt 0:00:19]} 39. Qe3 {[%emt 0:01:09]} Qg6 {[%emt 0:02:05]} 40. Qf2 {[%emt 0:00:46]} Qf6 {[%emt 0:01:57]} 41. Kh1 {[%emt 0:09:32]} Qxd4 {[%emt 0:05:10]} 42. Qe1 {[%emt 0:01:32]} Qf4 {[%emt 0:04:11]} 43. Bxd5 {[%emt 0:05:07]} Qxd6 {[%emt 0:10:11]} 44. Bf3 {[%emt 0:02:05]} Qg3 {[%emt 0:08:58]} 45. Qc3+ {[%emt 0:02:47]} Rg7 {[%emt 0:00:35]} 46. Rg2 {[%emt 0:01:57]} Qe5 {[%emt 0:00:18]} 47. Qd2 {[%emt 0:01:29]} Rxg2 {[%emt 0:00:48]} 48. Qh6+ {[%emt 0:00:12]} Kg8 {[%emt 0:00:06]} 49. Bxg2 {[%emt 0:00:04]} Qe1+ {[%emt 0:00:48]} 50. Kh2 {[%emt 0:00:02]} Qg3+ {[%emt 0:00:18]} 51. Kh1 {[%emt 0:00:27]} Nf8 {[%emt 0:00:12]} 52. Qh5 {[%emt 0:01:41]} Ng6 {[%emt 0:00:20]} 53. Qe2 {[%emt 0:01:04]} Nf4 {[%emt 0:00:12]} 0-1

[Event "Fredericia IM 2019"]
[Site "Fredericia"]
[Date "2019.06.02"]
[Round "9.2"]
[White "Ahlander, Bjorn"]
[Black "Fries-Nielsen, Niels Jorgen"]
[Result "1/2-1/2"]
[ECO "A40"]
[WhiteElo "2421"]
[BlackElo "2328"]
[Annotator "ChessBase"]
[PlyCount "60"]
[EventDate "2019.05.29"]
[EventType "tourn"]
[EventCountry "DEN"]
[SourceTitle "playchess.com"]
[Source "ChessBase"]
[SourceQuality "1"]
[TimeControl "40/5400+30:1800+30"]

1. d4 g6 {[%emt 0:06:38]} 2. Nf3 {[%emt 0:00:58]} Bg7 {[%emt 0:00:28]} 3. c4 {[%emt 0:00:54]} d6 {[%emt 0:04:06]} 4. Nc3 {[%emt 0:04:07]} Nc6 {[%emt 0:02:20]} 5. d5 {[%emt 0:04:44]} Ne5 {[%emt 0:03:23]} 6. Nxe5 {[%emt 0:01:40]} Bxe5 {[%emt 0:00:53]} 7. e4 {[%emt 0:00:15]} f5 {[%emt 0:01:39]} 8. exf5 {[%emt 0:06:11]} Bxf5 {[%emt 0:00:11]} 9. Be2 {[%emt 0:00:36]} h5 {[%emt 0:04:59]} 10. Nb5 {[%emt 0:03:57]} Qd7 {[%emt 0:13:01]} 11. h3 {[%emt 0:09:51]} e6 {[%emt 0:03:38]} 12. Nd4 {[%emt 0:04:40]} Ne7 {[%emt 0:05:39]} 13. Nf3 {[%emt 0:13:34]} exd5 {[%emt 0:05:24]} 14. cxd5 {[%emt 0:00:07]} Be4 {[%emt 0:00:35]} 15. O-O {[%emt 0:03:42]} Bxd5 {[%emt 0:03:17]} 16. Nxe5 {[%emt 0:04:16]} dxe5 {[%emt 0:00:02]} 17. Bg5 {[%emt 0:01:25]} O-O-O {[%emt 0:04:05]} 18. Qc1 {[%emt 0:04:16]} Rde8 {[%emt 0:05:44]} 19. Qc5 {[%emt 0:03:15]} b6 {[%emt 0:05:19]} 20. Qa3 {[%emt 0:00:02]} Kb8 {[%emt 0:00:44]} 21. Rfd1 {[%emt 0:02:07]} Nf5 {[%emt 0:01:01]} 22. Bf1 {[%emt 0:06:41]} Nd4 {[%emt 0:05:18]} 23. Rac1 {[%emt 0:02:50]} Rhf8 {[%emt 0:03:21]} 24. Be3 {[%emt 0:05:36]} Qf7 {[%emt 0:04:20]} 25. b4 {[%emt 0:06:29]} Bb7 {[%emt 0:02:14]} 26. Qc3 {[%emt 0:00:57]} Rd8 {[%emt 0:03:44]} 27. a3 {[%emt 0:02:06]} Nf5 {[%emt 0:02:01]} 28. Rxd8+ {[%emt 0:00:58]} Rxd8 {[%emt 0:00:03]} 29. Qxe5 {[%emt 0:00:15]} Nxe3 {[%emt 0:00:42]} 30. Qxe3 {[%emt 0:00:16]} Rh8 1/2-1/2

[Event "Fredericia IM 2019"]
[Site "Fredericia"]
[Date "2019.06.02"]
[Round "9.3"]
[White "Vasli, Aref"]
[Black "Devereaux, Maxim L"]
[Result "0-1"]
[ECO "A05"]
[WhiteElo "2346"]
[BlackElo "2342"]
[Annotator "RC"]
[PlyCount "112"]
[EventDate "2019.05.29"]
[EventType "tourn"]
[EventCountry "DEN"]
[SourceTitle "playchess.com"]
[Source "ChessBase"]
[SourceQuality "1"]
[TimeControl "40/5400+30:1800+30"]

1. Nf3 {[%emt 0:02:40]} Nf6 {[%emt 0:00:10]} 2. g3 {[%emt 0:00:15]} b5 {[%emt 0:01:30]} 3. Bg2 {[%emt 0:00:10]} Bb7 {[%emt 0:00:04]} 4. O-O {[%emt 0:00:57]} e6 {[%emt 0:00:33]} 5. d3 {[%emt 0:03:01]} d5 {[%emt 0:03:13]} 6. Nbd2 {[%emt 0:00:35]} Be7 {[%emt 0:01:59]} 7. e4 {[%emt 0:01:50]} O-O {[%emt 0:02:35]} 8. Qe2 {[%emt 0:00:49]} c5 {[%emt 0:01:01]} 9. Re1 {[%emt 0:01:40]} Re8 {[%emt 0:05:09]} 10. h4 {[%emt 0:10:10]} Nc6 {[%emt 0:05:11]} 11. Nf1 {[%emt 0:07:56]} Qb6 {[%emt 0:03:35]} 12. e5 {[%emt 0:15:39]} Nd7 {[%emt 0:00:15]} 13. N1h2 {[%emt 0:05:33]} Rac8 {[%emt 0:03:38]} 14. Bf4 {[%emt 0:03:12]} Nd4 {[%emt 0:02:13]} 15. Nxd4 {[%emt 0:02:23]} cxd4 {[%emt 0:00:08]} 16. h5 {[%emt 0:08:15]} Rc6 {[%emt 0:05:36]} 17. Nf3 {[%emt 0:02:04]} Rec8 {[%emt 0:02:37]} 18. Rec1 {[%emt 0:01:54]} a5 {[%emt 0:05:24]} 19. g4 {[%emt 0:05:10]} b4 {[%emt 0:02:46]} 20. h6 {[%emt 0:04:20]} g6 {[%emt 0:01:12]} 21. Rab1 {[%emt 0:09:17]} Ba6 {[%emt 0:03:29]} 22. Qd2 {[%emt 0:01:43]} Bb5 {[%emt 0:03:02]} 23. Bf1 {[%emt 0:02:31]} Ba4 {[%emt 0:01:58]} 24. Bg5 {[%emt 0:00:50]} Bf8 {[%emt 0:00:32]} 25. Qf4 {[%emt 0:01:22]} Rxc2 {[%emt 0:01:15]} 26. Rxc2 {[%emt 0:01:08]} Rxc2 {[%emt 0:00:19]} 27. Nxd4 {[%emt 0:00:40]} Rc8 {[%emt 0:00:54]} 28. b3 {[%emt 0:00:40]} Bc6 {[%emt 0:03:40]} 29. Nxc6 {[%emt 0:02:21]} Rxc6 {[%emt 0:00:07]} 30. d4 {[%emt 0:00:18]} Rc3 {[%emt 0:00:53]} 31. Qd2 {[%emt 0:02:19]} Nb8 {[%emt 0:01:45]} 32. Be3 {[%emt 0:00:11]} Nc6 {[%emt 0:01:26]} 33. Kg2 {[%emt 0:02:16]} Be7 {[%emt 0:01:12]} 34. Be2 {[%emt 0:01:33]} f6 {[%emt 0:06:38]} 35. exf6 {[%emt 0:00:45]} Bxf6 {[%emt 0:00:07]} 36. Rd1 {[%emt 0:00:07]} Kf7 {[%emt 0:01:57]} 37. f4 {[%emt 0:00:44]} Qc7 {[%emt 0:03:51]} 38. Bd3 {[%emt 0:00:28]} Ne7 {[%emt 0:04:51]} 39. Bb1 {[%emt 0:00:38]} Nc8 {[%emt 0:00:44]} 40. Qe2 {[%emt 0:01:03]} Nd6 {[%emt 0:02:58]} 41. Bf2 {[%emt 0:05:17]} Rc1 {[%emt 0:03:15]} 42. Be3 {[%emt 0:20:43]} Rxd1 {[%emt 0:01:18]} 43. Qxd1 {[%emt 0:00:01]} Qc3 {[%emt 0:01:10]} 44. Qd3 {[%emt 0:00:20]} Ne4 {[%emt 0:01:05]} 45. Kf1 {[%emt 0:02:49]} Qa1 {[%emt 0:08:06]} 46. Kg2 {[%emt 0:00:19]} Nc3 {[%emt 0:04:05]} 47. Bc2 Qxa2 {[%emt 0:00:46]} 48. f5 {[%emt 0:02:42]} exf5 {[%emt 0:00:22]} 49. gxf5 {[%emt 0:00:01]} Ne4 {[%emt 0:00:25]} 50. fxg6+ {[%emt 0:00:23]} Kxg6 {[%emt 0:00:17]} 51. Qe2 {[%emt 0:00:11]} Kf7 {[%emt 0:00:58]} 52. Kh3 {[%emt 0:01:48]} Ke7 {[%emt 0:01:36]} 53. Qd1 {[%emt 0:01:20]} Qb2 {[%emt 0:04:04]} 54. Kg4 {[%emt 0:00:46]} Qc3 {[%emt 0:00:37]} 55. Bxe4 {[%emt 0:00:47]} Qxe3 {[%emt 0:00:24]} 56. Bxh7 {[%emt 0:00:31]} Qg5+ {[%emt 0:00:06]} 0-1

[Event "Fredericia IM 2019"]
[Site "Fredericia"]
[Date "2019.06.02"]
[Round "9.4"]
[White "Olsen, Filip Boe"]
[Black "Easwaralingam, Adesh"]
[Result "1-0"]
[ECO "E53"]
[WhiteElo "2394"]
[BlackElo "2123"]
[Annotator "ChessBase"]
[PlyCount "69"]
[EventDate "2019.05.29"]
[EventType "tourn"]
[EventCountry "DEN"]
[SourceTitle "playchess.com"]
[Source "ChessBase"]
[SourceQuality "1"]
[TimeControl "40/5400+30:1800+30"]

1. d4 {[%emt 0:00:00]} Nf6 {[%emt 0:00:00]} 2. c4 {[%emt 0:00:00]} e6 {[%emt 0:00:00]} 3. Nc3 {[%emt 0:00:08]} Bb4 {[%emt 0:00:02]} 4. e3 {[%emt 0:00:11]} d5 {[%emt 0:00:08]} 5. Nf3 {[%emt 0:00:34]} O-O {[%emt 0:00:08]} 6. Bd3 {[%emt 0:00:15]} c5 {[%emt 0:00:07]} 7. cxd5 {[%emt 0:00:12]} Nxd5 {[%emt 0:04:23]} 8. O-O {[%emt 0:01:56]} cxd4 {[%emt 0:02:31]} 9. exd4 {[%emt 0:00:50]} h6 {[%emt 0:02:47]} 10. Qb3 {[%emt 0:09:28]} Nc6 {[%emt 0:10:16]} 11. a3 {[%emt 0:07:36]} Bd6 {[%emt 0:07:33]} 12. Be3 {[%emt 0:11:49]} Nce7 {[%emt 0:05:28]} 13. Nxd5 {[%emt 0:11:45]} Nxd5 {[%emt 0:01:17]} 14. Bc2 {[%emt 0:06:27]} b6 {[%emt 0:05:38]} 15. Qd3 {[%emt 0:02:38]} Nf6 {[%emt 0:00:43]} 16. Nd2 {[%emt 0:05:27]} Bb7 {[%emt 0:02:16]} 17. h3 {[%emt 0:01:34]} Qc8 {[%emt 0:04:41]} 18. Rfc1 {[%emt 0:01:57]} Bb8 {[%emt 0:06:55]} 19. f3 {[%emt 0:09:10]} Qc7 {[%emt 0:04:13]} 20. Nf1 {[%emt 0:00:57]} Qd6 {[%emt 0:04:53]} 21. Bf2 {[%emt 0:03:09]} Rd8 {[%emt 0:03:09]} 22. Rd1 {[%emt 0:00:46]} Qd5 {[%emt 0:04:19]} 23. Ne3 {[%emt 0:03:32]} Qg5 {[%emt 0:02:46]} 24. Ng4 {[%emt 0:00:46]} Nxg4 {[%emt 0:02:19]} 25. hxg4 {[%emt 0:01:41]} g6 {[%emt 0:02:39]} 26. Qe3 {[%emt 0:01:05]} Bf4 {[%emt 0:02:28]} 27. Qe1 {[%emt 0:00:21]} Qb5 {[%emt 0:02:10]} 28. Be3 {[%emt 0:04:14]} Bxe3+ {[%emt 0:04:05]} 29. Qxe3 {[%emt 0:00:02]} Kg7 {[%emt 0:00:50]} 30. a4 {[%emt 0:02:44]} Qxb2 {[%emt 0:03:02]} 31. Qe5+ {[%emt 0:00:24]} Kh7 {[%emt 0:04:02]} 32. Qc7 {[%emt 0:00:27]} Rf8 {[%emt 0:01:11]} 33. Rab1 {[%emt 0:01:01]} Qa3 {[%emt 0:01:18]} 34. Qxb7 {[%emt 0:00:20]} Qe3+ {[%emt 0:00:06]} 35. Kf1 {[%emt 0:00:26]} 1-0

[Event "Fredericia IM 2019"]
[Site "Fredericia"]
[Date "2019.06.02"]
[Round "9.5"]
[White "Antonsen, Mikkel"]
[Black "Pedersen, Nicolai Kvist Brondt"]
[Result "1-0"]
[ECO "D12"]
[WhiteElo "2423"]
[BlackElo "2325"]
[Annotator "ChessBase"]
[PlyCount "73"]
[EventDate "2019.05.29"]
[EventType "tourn"]
[EventCountry "DEN"]
[SourceTitle "playchess.com"]
[Source "ChessBase"]
[SourceQuality "1"]
[TimeControl "40/5400+30:1800+30"]

1. d4 {[%emt 0:00:00]} Nf6 {[%emt 0:00:40]} 2. c4 {[%emt 0:00:03]} c6 {[%emt 0:00:05]} 3. Nf3 {[%emt 0:01:09]} d5 {[%emt 0:00:15]} 4. e3 {[%emt 0:00:06]} Bf5 {[%emt 0:00:02]} 5. Nc3 {[%emt 0:00:12]} e6 {[%emt 0:00:04]} 6. Nh4 {[%emt 0:00:04]} Be4 {[%emt 0:00:02]} 7. f3 {[%emt 0:00:21]} Bg6 {[%emt 0:00:05]} 8. Qb3 {[%emt 0:00:09]} Qc7 {[%emt 0:00:04]} 9. Bd2 {[%emt 0:00:23]} Be7 {[%emt 0:00:23]} 10. Nxg6 {[%emt 0:02:09]} hxg6 {[%emt 0:00:16]} 11. O-O-O {[%emt 0:00:08]} a6 {[%emt 0:02:53]} 12. cxd5 {[%emt 0:00:36]} cxd5 {[%emt 0:05:14]} 13. Kb1 {[%emt 0:00:09]} Nc6 {[%emt 0:00:40]} 14. Rc1 {[%emt 0:00:07]} Rc8 {[%emt 0:04:03]} 15. g4 {[%emt 0:01:49]} O-O {[%emt 0:07:34]} 16. Qd1 {[%emt 0:00:35]} Qd7 {[%emt 0:16:21]} 17. Na4 {[%emt 0:01:06]} Nb8 {[%emt 0:08:33]} 18. Rxc8 {[%emt 0:07:36]} Qxc8 {[%emt 0:00:07]} 19. h4 {[%emt 0:00:10]} Nbd7 {[%emt 0:02:43]} 20. h5 {[%emt 0:09:36]} gxh5 {[%emt 0:02:02]} 21. g5 {[%emt 0:01:41]} Nh7 {[%emt 0:09:16]} 22. e4 {[%emt 0:01:01]} g6 {[%emt 0:01:59]} 23. exd5 {[%emt 0:00:23]} exd5 {[%emt 0:00:29]} 24. f4 {[%emt 0:00:17]} f5 {[%emt 0:03:29]} 25. Qb3 {[%emt 0:01:23]} Re8 {[%emt 0:18:06]} 26. Qxd5+ {[%emt 0:00:35]} Kh8 {[%emt 0:01:12]} 27. Qf7 {[%emt 0:02:34]} b5 {[%emt 0:01:54]} 28. d5 {[%emt 0:02:02]} Bxg5 {[%emt 0:06:04]} 29. fxg5 {[%emt 0:04:24]} Ne5 {[%emt 0:00:56]} 30. Bc3 {[%emt 0:00:08]} bxa4 {[%emt 0:00:37]} 31. Bxa6 {[%emt 0:00:56]} Qb8 {[%emt 0:00:47]} 32. d6 {[%emt 0:00:45]} Qa8 {[%emt 0:05:03]} 33. Re1 {[%emt 0:00:19]} Nxg5 {[%emt 0:00:29]} 34. Qxg6 {[%emt 0:02:32]} Ngf3 {[%emt 0:01:08]} 35. Qh6+ {[%emt 0:02:48]} Kg8 {[%emt 0:00:02]} 36. Bc4+ {[%emt 0:00:14]} Nxc4 {[%emt 0:00:56]} 37. Qg7# 1-0